bitfinex/quotes_ETHUSD_20250210
["timestamp","ask_amount","ask_price","bid_price","bid_amount"]
[1739165021672,7.34148,2637.5,2637.2,2.08789855]
[1739165022374,4.34148,2637.5,2637.2,2.08789855]
[1739165023081,9.11139,2637.6,2637.2,2.08789855]
[1739165023240,5.32,2637.6,2637.5,2.01720144]
[1739165023576,5.32,2637.6,2637.5,2.83972906]
[1739165029183,0.77561,2637.8,2637.5,2.83972906]
[1739165032554,6.1166,2638.0,2637.5,2.83972906]
[1739165032747,6.6666,2638.0,2637.9,2.01720144]
[1739165032961,10.45735,2638.0,2637.9,2.01720144]
[1739165033393,10.45735,2638.0,2637.9,2.08749391]
[1739165034001,5.32,2638.0,2637.9,2.08749391]
[1739165034298,5.32,2638.0,2637.9,2.89599391]
[1739165036212,5.32,2638.0,2637.9,2.08749391]
[1739165036413,9.11075,2638.0,2637.9,2.08749391]
[1739165037397,9.66075,2638.0,2637.9,0.07029247]
[1739165037602,3.79089,2637.9,2637.6,2.01720144]
[1739165037778,3.79089,2637.9,2637.8,2.01720144]
[1739165038184,5.87,2638.0,2637.8,2.01720144]
[1739165038510,9.66077,2638.0,2637.8,2.01720144]
[1739165039230,3.79089,2637.9,2637.8,2.01720144]
[1739165040512,4.34089,2637.9,2637.8,2.01720144]
[1739165040722,5.89182435,2637.9,2637.8,2.01720144]
[1739165040891,3.79125,2637.7,2637.5,2.01720144]
[1739165041222,3.79125,2637.7,2637.6,0.07024943]
[1739165041581,10.47105,2637.7,2637.6,0.07024943]
[1739165041786,10.47105,2637.7,2636.7,3.79254]
[1739165041787,0.8098,2637.5,2636.8,0.8085]
[1739165042016,0.55,2637.6,2636.7,2.01720144]
[1739165042017,3.79244,2636.9,2636.7,2.01720144]
[1739165044451,3.79247,2636.8,2636.7,2.01720144]
[1739165044612,3.79244,2636.9,2636.7,2.01720144]
[1739165045053,0.76021948,2636.8,2636.7,2.01720144]
[1739165049515,0.76021948,2636.8,2636.7,2.08300343]
[1739165050853,3.79244,2636.9,2636.7,2.08300343]
[1739165051026,4.34219,2637.0,2636.7,2.08300343]
[1739165051237,4.34219,2637.0,2636.9,2.01720144]
[1739165051632,4.34219,2637.0,2636.9,2.08300343]
[1739165052159,4.34219,2637.0,2636.9,2.01720144]
[1739165052656,4.34219,2637.0,2636.9,2.08368364]
[1739165052829,5.1159308,2637.0,2636.9,2.08368364]
[1739165055562,0.7737408,2637.0,2636.9,2.01720144]
[1739165056161,0.7737408,2637.0,2636.9,2.08368364]
[1739165056359,4.5659208,2637.0,2636.9,2.08368364]
[1739165057367,0.7737408,2637.0,2636.9,2.08368364]
[1739165057964,3.79195,2637.2,2636.9,2.08368364]
[1739165058140,3.79195,2637.2,2637.1,2.01720144]
[1739165058348,0.77121993,2637.2,2637.1,2.01720144]
[1739165058542,0.77121993,2637.2,2637.1,2.08364777]
[1739165058728,4.56311993,2637.2,2637.1,2.08364777]
[1739165060278,0.7548,2637.9,2637.2,4.60596]
[1739165060444,4.54577,2637.9,2637.8,2.01720144]
[1739165060629,6.79097,2637.9,2637.8,2.01720144]
[1739165060832,7.34097,2637.9,2637.8,2.01720144]
[1739165061029,8.08636868,2637.9,2637.8,2.08355304]
[1739165061547,8.08636868,2637.9,2637.8,0.0663516]
[1739165061877,8.08636868,2637.9,2637.6,2.01720144]
[1739165062086,8.08636868,2637.9,2637.8,2.08355304]
[1739165062282,8.08636868,2637.9,2637.8,2.01720144]
[1739165062583,4.29539868,2637.9,2637.8,2.08355304]
[1739165063486,6.79046,2638.2,2637.8,2.08355304]
[1739165063647,6.0748,2638.3,2637.9,2.01720144]
[1739165063648,9.86512,2638.3,2637.9,2.01720144]
[1739165063848,3.79067,2638.1,2637.9,2.08293308]
[1739165064609,0.75079076,2638.0,2637.9,2.08293308]
[1739165069172,6.0748,2638.3,2637.9,2.08293308]
[1739165069481,6.0748,2638.3,2638.1,2.01720144]
[1739165070082,6.0748,2638.3,2638.2,0.06573164]
[1739165070305,6.85165234,2638.3,2638.2,0.06573164]
[1739165071697,6.09685234,2638.3,2638.2,0.06573164]
[1739165078470,5.32,2638.3,2638.2,2.08293308]
[1739165079841,0.8091,2638.9,2638.2,2.08293308]
[1739165080070,5.32,2638.8,2638.4,2.01720144]
[1739165080417,5.32,2638.8,2638.5,0.8099]
[1739165080622,5.32,2638.8,2638.5,0.87431469]
[1739165082368,6.07264164,2638.8,2638.5,0.87431469]
[1739165087889,5.32,2638.8,2638.5,0.87431469]
[1739165088874,5.32,2638.8,2638.6,2.01720144]
[1739165089079,1.57664643,2639.1,2638.6,2.08118591]
[1739165092509,0.76754643,2639.1,2638.6,2.08118591]
[1739165094364,0.7917,2639.0,2638.6,0.06398447]
[1739165094591,5.32,2638.9,2638.2,2.78900144]
[1739165094807,0.7917,2638.8,2638.7,0.06398447]
[1739165095012,0.7917,2638.8,2638.2,2.01720144]
[1739165095209,0.7917,2638.8,2638.7,0.06398447]
[1739165095409,0.7917,2638.8,2638.2,2.01720144]
[1739165095713,0.7917,2638.8,2638.0,0.7718]
[1739165095714,0.7917,2638.8,2638.7,0.06398447]
[1739165096013,0.7917,2638.8,2638.0,2.78900144]
[1739165096305,0.7917,2638.8,2638.7,0.06392426]
[1739165096609,0.784,2638.6,2638.0,2.78900144]
[1739165100235,0.784,2638.6,2638.1,0.06392426]
[1739165100527,5.32,2638.5,2638.1,0.06392426]
[1739165102899,1.55720389,2638.4,2638.1,0.06392426]
[1739165103394,0.784,2638.3,2637.6,0.8248]
[1739165103595,5.32,2638.2,2637.6,0.8248]
[1739165103795,5.32,2638.2,2637.7,0.06417379]
[1739165104606,5.32,2638.2,2637.7,2.08137523]
[1739165105012,5.32,2638.2,2637.7,0.06417379]
[1739165105207,0.784,2638.1,2637.7,0.06417379]
[1739165105538,0.784,2638.1,2637.5,2.01720144]
[1739165105830,0.784,2638.1,2637.8,0.06438895]
[1739165106025,5.32,2638.2,2637.7,2.84200144]
[1739165106239,5.32,2638.2,2638.1,2.01720144]
[1739165106821,5.32,2638.2,2638.1,2.0823046]
[1739165107334,5.32,2638.2,2638.1,2.8427046]
[1739165109231,3.0,2638.6,2638.1,2.8427046]
[1739165109535,3.0,2638.6,2638.3,2.01720144]
[1739165109780,5.32,2638.7,2638.5,2.01720144]
[1739165109936,5.32,2638.7,2638.5,2.77760144]
[1739165110138,5.32,2638.7,2638.6,0.06510316]
[1739165110297,0.8013,2639.3,2638.6,0.06510316]
[1739165110495,6.1213,2639.5,2639.0,2.01720144]
[1739165110834,6.1213,2639.5,2639.2,2.01720144]
[1739165111136,5.32,2639.5,2639.2,2.01720144]
[1739165111633,6.09646835,2639.6,2639.3,0.06454382]
[1739165111839,6.09646835,2639.6,2639.3,0.7604]
[1739165112137,6.09646835,2639.6,2639.4,0.06454382]
[1739165113036,5.32,2639.6,2639.4,5.87038526]
[1739165113200,0.99171654,2640.2,2639.4,5.87038526]
[1739165113397,0.99171654,2640.2,2639.7,2.01720144]
[1739165113616,0.99171654,2640.2,2639.8,0.06371821]
[1739165113957,0.99171654,2640.2,2639.7,2.01720144]
[1739165114159,0.75331625,2640.0,2639.9,0.06371821]
[1739165114355,0.75331625,2640.0,2639.5,2.01720144]
[1739165114528,0.75331625,2640.0,2639.9,0.06371821]
[1739165114717,0.75331625,2640.0,2639.5,2.01720144]
[1739165115227,0.75331625,2640.0,2639.6,0.06371821]
[1739165118342,5.32,2639.9,2639.6,0.06371821]
[1739165122017,0.7727,2639.8,2639.6,0.06371821]
[1739165122211,0.7727,2639.8,2639.1,2.83710144]
[1739165122439,0.7727,2639.8,2639.2,0.06219571]
[1739165123180,0.7727,2639.8,2639.3,2.01720144]
[1739165123775,0.7727,2639.8,2639.4,0.06219571]
[1739165124270,5.32,2639.7,2639.4,0.06219571]
[1739165124573,5.32,2639.7,2639.1,2.83710144]
[1739165124783,5.32,2639.7,2639.5,0.06219571]
[1739165124978,5.32,2639.7,2639.1,2.83710144]
[1739165125467,5.32,2639.7,2639.2,0.06219571]
[1739165127986,0.75546839,2639.5,2639.2,0.06219571]
[1739165128171,6.07546839,2639.5,2639.2,0.06219571]
[1739165128969,5.32,2639.5,2639.2,0.06219571]
[1739165129357,5.32,2639.5,2639.3,2.01720144]
[1739165129554,5.32,2639.5,2639.2,0.06219571]
[1739165129759,5.32,2639.5,2639.4,0.06227309]
[1739165130085,5.32,2639.5,2639.1,2.83710144]
[1739165130293,5.32,2639.5,2639.4,0.06243644]
[1739165130589,5.32,2639.5,2639.1,2.83710144]
[1739165130748,5.32,2639.5,2639.4,0.06237626]
[1739165130944,5.32,2639.5,2639.3,2.01720144]
[1739165131249,5.32,2639.5,2639.4,0.88227626]
[1739165132169,5.32,2639.5,2639.4,0.06237626]
[1739165133357,0.75766714,2640.0,2639.4,0.06237626]
[1739165133358,5.32,2639.9,2639.4,0.06237626]
[1739165136128,0.7727,2639.8,2639.4,0.06237626]
[1739165136816,5.32,2639.9,2639.4,0.06237626]
[1739165138714,5.32,2639.9,2639.6,2.01720144]
[1739165138908,5.32,2639.9,2639.7,0.7572]
[1739165139082,3.92015494,2640.1,2639.7,0.7572]
[1739165139285,3.92015494,2640.1,2639.8,0.06239345]
[1739165139479,3.92015494,2640.1,2639.3,2.77440144]
[1739165139797,0.761,2640.0,2639.9,0.06239345]
[1739165140114,0.761,2640.0,2639.3,2.77440144]
[1739165140780,0.761,2640.0,2639.5,2.01720144]
[1739165141105,3.15915494,2640.1,2639.6,0.7572]
[1739165141310,3.15915494,2640.1,2639.7,2.01720144]
[1739165141719,3.15915494,2640.1,2639.8,0.06239345]
[1739165141876,3.15915494,2640.1,2639.6,0.7572]
[1739165142070,3.15915494,2640.1,2639.9,0.06239345]
[1739165142295,3.15915494,2640.1,2639.6,0.7572]
[1739165142499,3.15915494,2640.1,2640.0,0.06239345]
[1739165142770,3.15915494,2640.1,2639.6,0.7572]
[1739165142970,3.15915494,2640.1,2640.0,0.06239345]
[1739165143171,3.15915494,2640.1,2639.6,0.7572]
[1739165143474,3.15915494,2640.1,2639.7,0.06239345]
[1739165143668,8.47915494,2640.1,2639.7,0.06239345]
[1739165143913,8.47915494,2640.1,2639.8,2.01720144]
[1739165144113,5.32,2640.1,2639.8,2.07922525]
[1739165145795,5.32,2640.1,2639.8,0.06202381]
[1739165146197,5.32,2640.1,2639.6,2.77440144]
[1739165146403,5.32,2640.1,2639.9,0.0613964]
[1739165146621,5.32,2640.1,2639.6,2.77440144]
[1739165146788,5.32,2640.1,2640.0,0.0613964]
[1739165147299,6.081,2640.1,2639.6,2.77440144]
[1739165147474,6.081,2640.1,2640.0,0.0613964]
[1739165147675,6.081,2640.1,2639.4,0.7572]
[1739165147916,6.081,2640.1,2640.0,0.0613964]
[1739165148101,6.081,2640.1,2639.4,0.7572]
[1739165148573,6.081,2640.1,2639.5,0.06146514]
[1739165149981,0.761,2640.0,2639.5,0.06146514]
[1739165150302,6.081,2640.0,2639.3,2.01720144]
[1739165150506,6.081,2640.0,2639.6,0.06168858]
[1739165150801,6.081,2640.0,2639.3,2.01720144]
[1739165150998,6.081,2640.0,2639.7,0.06168858]
[1739165151202,6.081,2640.0,2639.3,2.01720144]
[1739165151386,6.081,2640.0,2639.8,0.06169717]
[1739165151591,0.77746128,2639.9,2639.3,2.01720144]
[1739165152013,0.77746128,2639.9,2639.4,0.06169717]
[1739165153079,0.7506,2639.8,2639.4,0.06169717]
[1739165153309,0.7506,2639.8,2639.1,0.7572]
[1739165153499,5.32,2639.7,2639.5,0.06186048]
[1739165153742,5.32,2639.7,2639.1,0.7572]
[1739165154026,5.32,2639.7,2639.6,0.06186048]
[1739165154317,5.32,2639.7,2639.1,0.7572]
[1739165154681,5.32,2639.7,2639.2,0.06186907]
[1739165161538,4.53916,2639.6,2639.2,0.06186907]
[1739165161738,0.7506,2639.5,2639.2,0.06186907]
[1739165161895,0.7506,2639.5,2638.7,2.01720144]
[1739165162231,0.7493541,2639.4,2638.7,2.01720144]
[1739165162535,0.7493541,2639.4,2638.8,0.06222152]
[1739165163744,0.7493541,2639.4,2638.9,2.07942296]
[1739165165537,0.7506,2639.5,2639.2,2.01720144]
[1739165165695,5.32,2639.7,2639.2,2.01720144]
[1739165165891,5.32,2639.7,2639.4,2.01720144]
[1739165166133,5.32,2639.7,2639.3,0.06249663]
[1739165166367,5.32,2639.7,2639.2,2.01720144]
[1739165166549,5.32,2639.7,2639.4,0.06046687]
[1739165167027,5.32,2639.7,2639.5,0.06046687]
[1739165167228,5.32,2639.7,2639.2,2.01720144]
[1739165167658,5.32,2639.7,2639.3,0.06046687]
[1739165168070,5.32,2639.7,2639.4,0.06046687]
[1739165168233,5.32,2639.7,2639.2,2.01720144]
[1739165168434,5.32,2639.7,2639.3,0.06046687]
[1739165168870,5.32,2639.7,2639.2,2.01720144]
[1739165169076,5.32,2639.7,2639.4,0.06046687]
[1739165169243,5.32,2639.7,2639.2,2.01720144]
[1739165169638,5.32,2639.7,2639.2,5.80619144]
[1739165169971,5.32,2639.8,2639.5,2.78320144]
[1739165170384,5.32,2639.8,2639.6,0.06020061]
[1739165174860,5.32,2639.9,2639.6,0.06020061]
[1739165177613,5.32,2639.9,2639.2,2.01720144]
[1739165178178,5.32,2639.9,2639.3,0.05959087]
[1739165181793,5.32,2639.9,2639.3,3.84846087]
[1739165182468,5.32,2639.9,2639.3,0.05959087]
[1739165201613,5.32,2639.9,2639.5,1.00879467]
[1739165201778,0.7543,2639.8,2639.5,1.00879467]
[1739165202112,0.7543,2639.8,2639.6,0.05927665]
[1739165202672,0.7543,2639.8,2639.1,1.00879467]
[1739165202873,0.7543,2639.8,2639.7,0.05932818]
[1739165203098,0.7543,2639.7,2639.1,1.00879467]
[1739165203405,6.0743,2639.7,2639.2,0.05968028]
[1739165203772,0.7543,2639.6,2639.0,2.01798362]
[1739165203991,0.7543,2639.6,2639.1,0.05968028]
[1739165206220,0.7543,2639.5,2638.8,2.01798362]
[1739165206538,0.7543,2639.5,2639.2,0.05968028]
[1739165206712,0.7543,2639.5,2638.8,2.01798362]
[1739165207218,0.7543,2639.5,2638.9,0.05968028]
[1739165207422,0.77126165,2639.4,2638.9,0.05968028]
[1739165207734,3.78926,2639.1,2638.9,0.05968028]
[1739165207917,9.0743,2639.0,2638.9,0.05968028]
[1739165208119,8.32,2639.0,2638.4,2.01798362]
[1739165208324,0.7543,2638.9,2638.4,2.01798362]
[1739165208700,0.7543,2638.9,2638.5,0.05968028]
[1739165209627,0.77631374,2638.8,2638.5,0.05968028]
[1739165210199,0.7543,2638.7,2638.5,0.05968028]
[1739165210398,0.7543,2638.7,2638.2,2.01798362]
[1739165210632,6.0743,2638.7,2638.3,0.05968028]
[1739165211946,6.0743,2638.7,2638.4,2.01798362]
[1739165212304,6.0743,2638.7,2638.5,0.06042771]
[1739165213049,6.0743,2638.7,2638.2,2.01798362]
[1739165213252,6.0743,2638.7,2638.6,0.06039333]
[1739165213546,6.0743,2638.7,2638.2,2.01798362]
[1739165214114,6.0743,2638.7,2638.3,0.06039333]
[1739165214860,6.0743,2638.7,2638.4,2.01798362]
[1739165215915,6.0743,2638.7,2638.5,0.06115793]
[1739165217074,0.8202,2638.5,2637.8,2.01798362]
[1739165217363,0.8202,2638.2,2637.6,2.01798362]
[1739165220245,0.8202,2638.2,2637.7,0.05903509]
[1739165221477,4.61067,2638.2,2637.7,0.05903509]
[1739165222369,5.32,2638.1,2637.7,0.05903509]
[1739165223279,6.06556325,2638.1,2637.7,0.05903509]
[1739165225802,5.32,2638.1,2638.0,2.01798362]
[1739165225996,0.8202,2638.5,2638.0,2.01798362]
[1739165226294,0.8202,2638.5,2638.0,0.06005799]
[1739165226441,3.79032,2638.3,2638.0,0.06005799]
[1739165226639,0.7574,2638.2,2637.6,2.01798362]
[1739165226880,0.7574,2638.2,2638.1,0.05791306]
[1739165227041,0.7574,2638.2,2637.8,2.01798362]
[1739165227570,0.7574,2638.2,2637.9,0.05778411]
[1739165228735,3.7574,2638.2,2637.9,0.05778411]
[1739165229133,3.7574,2638.2,2637.6,2.01798362]
[1739165229383,7.54794,2638.2,2637.7,0.05782709]
[1739165229736,3.7574,2638.2,2637.7,0.05782709]
[1739165229978,0.7574,2637.9,2637.7,0.05782709]
[1739165230146,3.79092,2637.9,2637.7,0.05782709]
[1739165230344,0.7574,2637.8,2637.2,2.01798362]
[1739165230576,0.7574,2637.8,2637.3,0.05782709]
[1739165230780,0.7574,2637.8,2637.2,2.01798362]
[1739165230934,0.7574,2637.8,2637.3,0.05782709]
[1739165231136,0.7574,2637.8,2637.2,2.01798362]
[1739165231389,0.7574,2637.8,2637.3,0.05782709]
[1739165231568,0.7574,2637.8,2637.2,2.01798362]
[1739165232042,0.7574,2637.8,2637.3,0.05782709]
[1739165232460,0.7574,2637.8,2637.2,2.01798362]
[1739165232667,0.7574,2637.8,2637.4,0.05782709]
[1739165232861,0.7574,2637.8,2637.2,2.01798362]
[1739165233482,0.7574,2637.8,2637.3,0.05782709]
[1739165233685,0.7574,2637.8,2637.4,2.01798362]
[1739165233979,0.7574,2637.8,2637.4,2.77788362]
[1739165234182,5.32,2637.7,2637.5,0.05782709]
[1739165234691,5.32,2637.7,2637.6,2.01798362]
[1739165235491,5.32,2637.7,2637.6,2.07581071]
[1739165235847,5.32,2637.7,2637.6,0.05782709]
[1739165236202,5.32,2637.7,2637.4,2.77788362]
[1739165236478,5.32,2637.7,2637.5,0.05782709]
[1739165237900,5.32,2637.7,2637.6,0.7599]
[1739165238492,5.32,2637.7,2637.6,0.05799905]
[1739165238862,5.32,2637.7,2637.4,2.01798362]
[1739165239060,5.32,2637.7,2637.6,0.05799905]
[1739165239260,5.32,2637.7,2637.4,2.01798362]
[1739165239460,5.32,2637.7,2637.6,0.05799905]
[1739165240287,5.32,2637.8,2637.6,0.05799905]
[1739165240483,5.32,2637.8,2637.4,2.01798362]
[1739165240691,5.32,2637.8,2637.7,0.05799905]
[1739165240988,5.32,2637.8,2637.4,2.01798362]
[1739165241509,5.32,2637.8,2637.5,0.05799905]
[1739165246015,5.32,2637.8,2637.7,2.01798362]
[1739165246192,3.7817,2638.2,2637.7,2.01798362]
[1739165246193,5.32,2637.9,2637.7,2.01798362]
[1739165246715,5.32,2637.9,2637.8,0.0582484]
[1739165247098,5.32,2637.9,2637.7,2.01798362]
[1739165247303,6.1017,2637.9,2637.8,0.0582484]
[1739165247615,0.7817,2637.8,2637.1,2.79488362]
[1739165247787,5.32,2637.7,2637.1,2.79488362]
[1739165247992,0.7817,2637.6,2637.2,0.05809363]
[1739165249582,5.32,2637.5,2637.2,0.05809363]
[1739165255225,5.32,2637.5,2637.4,2.01798362]
[1739165255429,0.7817,2638.4,2637.7,3.79114]
[1739165255742,0.55,2638.3,2637.8,0.0587558]
[1739165256104,0.55,2638.3,2637.7,2.01798362]
[1739165256342,1.53293503,2638.4,2637.9,0.0587558]
[1739165256539,1.53293503,2638.4,2637.7,2.01798362]
[1739165256848,0.7817,2638.4,2637.9,2.01798362]
[1739165256998,0.7817,2638.4,2638.0,0.0587558]
[1739165257199,0.7817,2638.4,2638.1,2.01798362]
[1739165257552,0.7817,2638.4,2638.2,0.05834301]
[1739165258543,6.78962,2638.8,2638.2,0.05834301]
[1739165258544,0.8194,2638.8,2638.3,2.01798362]
[1739165258704,0.8194,2638.8,2638.5,2.01798362]
[1739165258908,0.8194,2638.8,2638.3,2.01798362]
[1739165259143,7.60901,2638.8,2638.6,0.05834301]
[1739165259335,0.8194,2638.7,2637.9,0.7614]
[1739165259720,0.8194,2638.7,2638.0,2.07632663]
[1739165260030,0.8194,2638.5,2638.0,0.05834301]
[1739165260209,0.8194,2638.5,2637.8,2.01798362]
[1739165260545,0.8194,2638.5,2637.9,0.05758636]
[1739165261407,3.8194,2638.5,2637.9,0.05758636]
[1739165261608,3.8194,2638.5,2637.8,2.01798362]
[1739165261952,0.8194,2638.5,2637.9,0.05758636]
[1739165263344,0.8194,2638.5,2638.0,2.01798362]
[1739165263909,5.32,2638.4,2638.1,0.05768093]
[1739165271472,5.32,2638.4,2638.1,0.81908093]
[1739165271684,5.32,2638.4,2638.3,2.01798362]
[1739165272045,5.32,2638.4,2638.3,2.07563876]
[1739165273882,5.32,2638.4,2638.3,0.05765514]
[1739165274086,6.0963,2638.4,2638.3,0.05765514]
[1739165274284,6.0963,2638.4,2638.0,2.01798362]
[1739165274472,6.0963,2638.4,2638.3,0.05750041]
[1739165274781,6.0963,2638.4,2637.9,0.7938]
[1739165275159,6.0963,2638.4,2638.0,0.05750041]
[1739165280874,0.7763,2638.3,2638.0,0.05750041]
[1739165281119,9.66048,2638.2,2637.4,6.60326362]
[1739165281304,3.0,2638.0,2637.4,2.81178362]
[1739165284719,5.32,2637.9,2637.4,2.81178362]
[1739165287623,0.8219,2637.8,2637.2,2.01798362]
[1739165288134,0.8219,2637.8,2637.2,5.80987362]
[1739165288634,0.8219,2637.8,2637.2,5.80978362]
[1739165291743,0.8219,2637.8,2637.2,9.60159362]
[1739165292118,0.8219,2637.8,2637.2,5.80978362]
[1739165292319,0.8219,2637.8,2637.3,3.79175]
[1739165292625,0.8219,2637.8,2637.4,3.79161]
[1739165292957,5.32,2637.9,2637.7,3.79108]
[1739165293130,5.32,2637.9,2637.6,3.79131]
[1739165294661,5.32,2637.9,2637.7,2.01798362]
[1739165294821,5.32,2637.9,2637.7,5.80908362]
[1739165295017,5.32,2637.9,2637.8,3.79103]
[1739165295232,5.32,2637.9,2637.8,3.84718184]
[1739165295433,5.32,2637.9,2637.8,4.61818184]
[1739165296355,5.32,2637.9,2637.8,0.05615184]
[1739165296767,0.8219,2638.0,2637.7,2.01798362]
[1739165296926,0.8219,2638.0,2637.8,0.05607446]
[1739165297358,0.8229,2638.3,2637.8,4.6161]
[1739165297544,0.8229,2638.3,2637.9,3.84670507]
[1739165298266,5.32,2638.4,2638.0,5.80871362]
[1739165298569,0.8229,2638.5,2638.0,5.80871362]
[1739165298570,6.1429,2638.5,2638.1,3.84595827]
[1739165300063,6.1429,2638.5,2638.1,3.84586827]
[1739165300246,3.0,2638.7,2638.3,3.79029]
[1739165300563,3.0,2638.7,2638.4,0.0552565]
[1739165300949,3.0,2638.7,2638.2,2.01798362]
[1739165301145,3.0,2638.7,2638.5,0.05505019]
[1739165301350,3.0,2638.7,2638.1,3.79049]
[1739165301548,3.0,2638.7,2638.6,0.05505019]
[1739165301732,3.7857,2638.7,2638.0,2.84318362]
[1739165301922,3.7857,2638.5,2637.8,2.81768362]
[1739165302326,0.7857,2638.3,2637.6,5.80930362]
[1739165303062,3.7857,2638.3,2637.6,2.01798362]
[1739165303269,3.7857,2638.3,2637.7,3.79115]
[1739165303453,0.7857,2638.3,2637.7,3.79115]
[1739165303765,0.7857,2638.3,2637.8,3.79103]
[1739165303960,0.7857,2638.3,2637.7,4.59085]
[1739165304152,0.7857,2638.3,2637.7,3.79115]
[1739165304554,3.7857,2638.3,2637.6,5.80930362]
[1739165304723,3.7857,2638.3,2637.6,2.01798362]
[1739165304926,0.7857,2638.3,2637.7,3.79115]
[1739165305163,0.7857,2638.3,2637.9,2.01798362]
[1739165305527,6.1057,2638.3,2637.9,2.01798362]
[1739165307379,6.1057,2638.3,2637.9,5.80874362]
[1739165307532,5.32,2638.3,2638.0,3.79065]
[1739165307934,5.32,2638.3,2637.9,2.81768362]
[1739165308147,5.32,2638.3,2638.2,5.80844362]
[1739165309047,4.33918,2639.1,2638.2,5.80844362]
[1739165309048,5.32,2638.8,2638.4,3.79005]
[1739165309269,5.32,2638.8,2638.5,5.80800362]
[1739165309558,3.0,2638.7,2638.5,2.01798362]
[1739165310245,3.0,2638.7,2638.6,0.05489549]
[1739165310474,3.7857,2639.0,2638.6,0.05489549]
[1739165312384,4.55213915,2639.0,2638.6,0.05489549]
[1739165312586,0.7857,2639.0,2638.6,3.84474549]
[1739165314383,0.7857,2639.0,2638.7,2.01798362]
[1739165314753,0.7857,2639.0,2638.8,0.05470642]
[1739165314953,3.0,2639.2,2638.9,5.80743362]
[1739165315190,3.0,2639.2,2639.0,3.78927]
[1739165315391,3.0,2639.2,2639.0,0.05470642]
[1739165317024,6.1057,2639.3,2639.0,0.05470642]
[1739165318715,6.1057,2639.3,2639.0,3.84391642]
[1739165319017,5.32,2639.3,2639.0,3.84391642]
[1739165319722,5.02,2639.3,2639.0,3.84391642]
[1739165322024,5.02,2639.3,2639.2,3.78902]
[1739165322399,0.8253,2639.5,2639.2,0.05363221]
[1739165329922,0.8253,2639.5,2638.9,7.57872]
[1739165330115,0.8253,2639.5,2639.3,0.05354628]
[1739165330316,0.8253,2639.5,2638.9,3.78934]
[1739165330518,0.8253,2639.5,2638.1,6.79049]
[1739165330519,8.16399,2639.5,2639.4,0.05354628]
[1739165330692,0.8253,2639.3,2638.6,3.78975]
[1739165330900,3.8253,2639.3,2638.9,3.78933]
[1739165331410,3.8253,2639.3,2639.0,0.05354628]
[1739165332508,3.8253,2639.3,2638.8,5.80747362]
[1739165332739,3.8253,2639.3,2639.1,0.05354628]
[1739165332958,3.8253,2639.3,2638.8,2.01798362]
[1739165333098,3.8253,2639.3,2639.2,0.05358924]
[1739165333293,3.8253,2639.3,2638.7,4.57364]
[1739165333514,3.8253,2639.3,2639.2,0.05358924]
[1739165334018,7.58278,2639.3,2638.5,5.80792362]
[1739165334341,3.78902,2639.2,2638.6,0.05358924]
[1739165335240,9.10902,2639.2,2638.6,0.05358924]
[1739165335739,0.7938,2639.0,2638.6,0.05358924]
[1739165335901,3.7938,2639.0,2638.6,0.05358924]
[1739165336101,7.58312,2639.0,2638.6,0.05358924]
[1739165336634,8.34430133,2639.0,2638.6,0.05358924]
[1739165337423,1.55498133,2639.0,2638.6,0.05358924]
[1739165338836,0.7938,2639.0,2638.6,3.84342924]
[1739165339044,0.7938,2639.0,2638.6,0.85538924]
[1739165339420,0.7938,2639.0,2638.7,3.78973]
[1739165339620,0.7938,2639.0,2638.8,0.05411336]
[1739165339839,0.7938,2639.0,2638.7,3.78973]
[1739165340159,0.7938,2639.0,2638.9,0.05411336]
[1739165340359,0.7938,2639.0,2638.7,3.78973]
[1739165340563,0.7938,2639.0,2638.9,0.05411336]
[1739165340746,0.7938,2639.0,2638.7,3.78973]
[1739165340926,0.7938,2639.0,2638.9,0.05411336]
[1739165341127,0.7938,2639.0,2638.7,3.78973]
[1739165341339,0.7938,2639.0,2638.9,0.05411336]
[1739165341536,0.7938,2639.0,2638.7,3.78973]
[1739165341743,0.7938,2639.0,2638.9,0.05411336]
[1739165341965,0.7938,2639.0,2638.7,3.78973]
[1739165342152,0.7938,2639.0,2638.9,0.05411336]
[1739165342348,0.7938,2639.0,2638.7,3.78973]
[1739165342663,0.7938,2639.0,2638.9,0.05411336]
[1739165342823,0.7938,2639.0,2638.7,3.78973]
[1739165343023,0.7938,2639.0,2638.6,0.8018]
[1739165343024,0.7938,2639.0,2638.9,0.05411336]
[1739165343227,0.7938,2639.0,2638.5,5.80790362]
[1739165343424,0.7938,2639.0,2638.9,0.05411336]
[1739165343630,0.7938,2639.0,2638.5,5.80790362]
[1739165344177,0.7938,2639.0,2638.6,0.05411336]
[1739165344326,0.7938,2639.0,2638.7,3.78966]
[1739165344727,3.0,2639.1,2638.8,0.05411336]
[1739165344970,3.0,2639.1,2638.6,3.78986]
[1739165345172,3.0,2639.1,2638.9,0.05411336]
[1739165345323,3.0,2639.1,2638.6,3.78986]
[1739165345841,3.0,2639.1,2638.7,0.05411336]
[1739165346956,0.8327,2639.0,2638.7,0.05411336]
[1739165347156,0.8327,2639.0,2638.5,5.80801362]
[1739165347369,0.8327,2639.0,2638.8,0.05408758]
[1739165347569,0.8327,2639.0,2638.5,5.80801362]
[1739165347783,0.8327,2639.0,2638.9,0.05408758]
[1739165348005,0.8327,2639.0,2638.5,5.80801362]
[1739165348142,0.8327,2639.0,2638.9,0.05408758]
[1739165348345,0.8327,2639.0,2638.5,9.59804362]
[1739165348538,0.8327,2639.0,2638.9,0.05408758]
[1739165348744,0.8327,2639.0,2638.5,5.80801362]
[1739165348943,0.8327,2639.0,2638.9,0.05408758]
[1739165349281,0.8327,2639.0,2638.5,5.80801362]
[1739165349481,0.8327,2639.0,2638.9,0.05408758]
[1739165349681,0.8327,2639.0,2638.7,3.78971]
[1739165349987,6.90790239,2639.2,2638.8,0.05430242]
[1739165350292,6.90790239,2639.2,2638.7,3.78965]
[1739165350474,6.90790239,2639.2,2638.8,0.05430242]
[1739165350792,6.90790239,2639.2,2638.7,3.78965]